bitfinex/quotes_BTCUSD_20240611
["timestamp","ask_amount","ask_price","bid_price","bid_amount"]
[1718084442086,0.00893089,67764.0,67763.0,0.149573]
[1718084442519,0.000946,67764.0,67763.0,0.147573]
[1718084442926,0.000946,67764.0,67763.0,0.002]
[1718084443096,0.01084992,67764.0,67763.0,0.002]
[1718084443295,0.0188232,67764.0,67763.0,0.002]
[1718084443720,0.18222023,67764.0,67763.0,0.002]
[1718084444124,0.32654016,67764.0,67763.0,0.002]
[1718084444336,0.57314016,67764.0,67763.0,0.002]
[1718084444535,0.95671016,67764.0,67763.0,0.002]
[1718084444732,0.95671016,67764.0,67763.0,0.001]
[1718084444951,0.95671016,67764.0,67744.0,0.147614]
[1718084444952,0.00990392,67750.0,67744.0,0.147614]
[1718084445164,0.00990392,67750.0,67744.0,0.14794686]
[1718084446017,0.00990392,67750.0,67745.0,0.1]
[1718084447638,0.16339703,67757.0,67746.0,0.0775]
[1718084447846,0.00803936,67756.0,67749.0,0.147601]
[1718084448237,0.01794328,67756.0,67749.0,0.147601]
[1718084449420,0.00803936,67756.0,67749.0,0.148601]
[1718084449620,0.00803936,67756.0,67750.0,0.0090185]
[1718084449863,0.00803936,67756.0,67753.0,0.0090185]
[1718084450280,0.00803936,67756.0,67749.0,0.148601]
[1718084450281,0.00803936,67756.0,67755.0,0.0090185]
[1718084450481,0.00803936,67756.0,67754.0,0.1564]
[1718084450697,0.00803936,67756.0,67754.0,0.1654185]
[1718084450901,0.00803936,67756.0,67755.0,0.0090185]
[1718084451304,0.00803936,67756.0,67755.0,0.15707846]
[1718084451529,0.000946,67764.0,67759.0,0.1565995]
[1718084451736,0.000946,67764.0,67759.0,0.15693236]
[1718084451941,0.00791823,67763.0,67759.0,0.15693236]
[1718084452145,0.000946,67764.0,67759.0,0.15693236]
[1718084452550,0.000946,67764.0,67759.0,0.14791386]
[1718084452746,0.000946,67764.0,67759.0,0.15693236]
[1718084453156,0.000946,67764.0,67759.0,0.15793236]
[1718084453766,0.00791823,67763.0,67759.0,0.15793236]
[1718084453970,0.00791823,67763.0,67759.0,0.15893236]
[1718084454458,0.00791823,67763.0,67761.0,0.0090185]
[1718084454591,0.00791823,67763.0,67760.0,0.0090185]
[1718084454794,0.00791823,67763.0,67761.0,0.0090185]
[1718084454989,0.00791823,67763.0,67759.0,0.14991386]
[1718084455191,0.000946,67764.0,67759.0,0.14991386]
[1718084455418,0.00792436,67763.0,67759.0,0.14891386]
[1718084455646,0.00792436,67763.0,67759.0,0.14791386]
[1718084456052,0.00792436,67763.0,67759.0,0.14991386]
[1718084456292,0.00660159,67762.0,67759.0,0.14991386]
[1718084456426,0.00660159,67762.0,67759.0,0.148581]
[1718084456629,0.07411291,67765.0,67759.0,0.149581]
[1718084456823,0.00660567,67764.0,67759.0,0.149581]
[1718084457214,0.00660567,67764.0,67759.0,0.148581]
[1718084457413,0.00660567,67764.0,67759.0,0.147581]
[1718084457625,0.00660567,67764.0,67759.0,0.14891386]
[1718084457834,0.00660567,67764.0,67759.0,0.14991386]
[1718084458036,0.00660567,67764.0,67761.0,0.0090185]
[1718084458241,0.00660567,67764.0,67759.0,0.14991386]
[1718084458242,0.00660567,67764.0,67760.0,0.0090185]
[1718084458648,0.00660567,67764.0,67759.0,0.15893236]
[1718084459091,0.00660567,67764.0,67759.0,0.15793236]
[1718084459295,0.00660567,67764.0,67760.0,0.0090185]
[1718084459694,0.00660567,67764.0,67761.0,0.0090185]
[1718084459931,0.00660567,67764.0,67762.0,0.0090185]
[1718084460201,0.00660567,67764.0,67761.0,0.0090185]
[1718084460415,0.00660567,67764.0,67760.0,0.147579]
[1718084460644,0.00660567,67764.0,67760.0,0.1565975]
[1718084460861,0.00660567,67764.0,67761.0,0.0775099]
[1718084461108,0.00660567,67764.0,67763.0,0.0090185]
[1718084461304,0.00660567,67764.0,67763.0,0.147573]
[1718084461677,0.000946,67766.0,67764.0,0.3164885]
[1718084461832,0.000946,67766.0,67765.0,0.0791]
[1718084462482,0.000946,67766.0,67764.0,0.14757]
[1718084462679,0.01084992,67766.0,67760.0,0.148579]
[1718084463158,0.00990392,67765.0,67760.0,0.147579]
[1718084463363,0.00990392,67763.0,67761.0,0.001]
[1718084463568,0.000946,67766.0,67762.0,0.10450013]
[1718084463569,0.00990392,67764.0,67762.0,0.10450013]
[1718084463883,0.00673427,67763.0,67762.0,0.10450013]
[1718084464031,0.00673427,67763.0,67762.0,0.10450173]
[1718084464032,0.00990392,67763.0,67762.0,0.10450173]
[1718084464234,0.01663819,67763.0,67760.0,0.149579]
[1718084464441,0.00990392,67762.0,67761.0,0.10450643]
[1718084464658,0.00673223,67762.0,67761.0,0.10450643]
[1718084465043,0.01663615,67762.0,67761.0,0.10450643]
[1718084466054,0.17403615,67762.0,67755.0,0.16573384]
[1718084466283,0.00990392,67760.0,67756.0,0.1]
[1718084466714,0.10584248,67760.0,67759.0,0.10580279]
[1718084466922,0.26044248,67760.0,67759.0,0.10580279]
[1718084467151,0.26044248,67760.0,67759.0,0.00033286]
[1718084467278,0.26044248,67760.0,67759.0,0.00133286]
[1718084467491,0.26044248,67760.0,67759.0,0.00033286]
[1718084468177,0.26044248,67760.0,67759.0,0.00133286]
[1718084468928,0.26044248,67760.0,67759.0,0.00233286]
[1718084469134,0.42365539,67760.0,67759.0,0.00233286]
[1718084469344,0.42365539,67760.0,67759.0,0.00133286]
[1718084469345,0.71555432,67760.0,67759.0,0.00133286]
[1718084469549,0.70555432,67760.0,67759.0,0.00233286]
[1718084469744,0.70555432,67760.0,67759.0,0.00133286]
[1718084470149,0.70555432,67760.0,67759.0,0.00233286]
[1718084470352,0.70555432,67760.0,67759.0,0.00133286]
[1718084471655,0.70555432,67760.0,67759.0,0.001]
[1718084471656,0.41365539,67760.0,67759.0,0.001]
[1718084472180,0.08921042,67756.0,67751.0,0.075]
[1718084472505,0.006635,67755.0,67752.0,0.1609]
[1718084472921,0.16332333,67757.0,67752.0,0.1609]
[1718084473127,0.08921042,67756.0,67752.0,0.1609]
[1718084473334,0.10574934,67756.0,67752.0,0.1609]
[1718084473981,0.10574934,67756.0,67752.0,0.1619]
[1718084474195,0.006635,67756.0,67753.0,0.07215996]
[1718084474406,0.006635,67756.0,67752.0,0.1609]
[1718084474954,0.006635,67756.0,67755.0,0.0090185]
[1718084475207,0.006635,67756.0,67755.0,0.4016085]
[1718084475425,0.07411291,67768.0,67759.0,0.0090185]
[1718084475653,0.16332333,67768.0,67760.0,0.0090185]
[1718084475894,0.16332333,67768.0,67758.0,0.147583]
[1718084475895,0.00658445,67764.0,67761.0,0.10414437]
[1718084476135,0.00658445,67764.0,67762.0,0.10414437]
[1718084476371,0.08921042,67769.0,67762.0,0.10414437]
[1718084476598,0.00658241,67763.0,67762.0,0.10414437]
[1718084476819,0.07411291,67768.0,67762.0,0.10414437]
[1718084477062,0.07411291,67768.0,67762.0,0.25171937]
[1718084477063,0.00658241,67763.0,67762.0,0.25171937]
[1718084477313,0.07411291,67773.0,67765.0,0.0090185]
[1718084477547,0.07411291,67773.0,67765.0,0.00935136]
[1718084477756,0.04954168,67774.0,67765.0,0.40538366]
[1718084477965,0.04954168,67774.0,67765.0,0.78152304]
[1718084478207,0.04954168,67774.0,67765.0,0.73738366]
[1718084478416,0.000946,67776.0,67765.0,0.82564034]
[1718084479279,0.000946,67776.0,67765.0,0.73738366]
[1718084479519,0.000946,67776.0,67765.0,0.73838366]
[1718084479737,0.000946,67776.0,67765.0,0.82662655]
[1718084480800,0.000946,67776.0,67765.0,0.82762655]
[1718084481226,0.000946,67776.0,67765.0,0.73938366]
[1718084482153,0.000946,67776.0,67765.0,1.0055532]
[1718084482380,0.000946,67776.0,67765.0,0.93938366]
[1718084482595,0.000946,67776.0,67765.0,0.9390508]
[1718084482803,0.000946,67776.0,67765.0,0.7390508]
[1718084483023,0.000946,67776.0,67765.0,0.82727685]
[1718084483259,0.000946,67776.0,67765.0,0.7390508]
[1718084483705,0.000946,67776.0,67765.0,0.9390508]
[1718084484172,0.000946,67776.0,67765.0,0.95705429]
[1718084484841,0.000946,67776.0,67765.0,0.75705429]
[1718084485259,0.000946,67776.0,67765.0,1.58370796]
[1718084485486,0.000946,67776.0,67765.0,1.63494577]
[1718084486165,0.000946,67776.0,67765.0,1.63394577]
[1718084486366,0.000946,67776.0,67765.0,1.63294577]
[1718084486782,0.000946,67776.0,67765.0,1.44973077]
[1718084487215,0.000946,67776.0,67765.0,0.8072921]
[1718084487453,0.000946,67776.0,67765.0,0.41577788]
[1718084487454,0.0009815,67773.0,67765.0,0.41577788]
[1718084487678,0.00990392,67773.0,67765.0,0.37271586]
[1718084488117,0.000946,67776.0,67765.0,0.35587184]
[1718084488118,0.00990392,67768.0,67765.0,0.35587184]
[1718084488332,0.0816,67770.0,67765.0,0.35587184]
[1718084488535,0.0816,67770.0,67765.0,0.35687184]
[1718084488940,0.0816,67770.0,67765.0,0.248568]
[1718084489155,0.0816,67775.0,67765.0,0.3622908]
[1718084489362,0.0816,67775.0,67765.0,0.3642908]
[1718084489588,0.0816,67775.0,67765.0,0.3632908]
[1718084490000,0.0816,67775.0,67765.0,0.3642908]
[1718084490203,0.000946,67776.0,67765.0,0.3642908]
[1718084490413,0.000946,67776.0,67765.0,0.50861073]
[1718084490623,0.01084992,67776.0,67765.0,0.50861073]
[1718084490840,0.0824,67769.0,67765.0,0.3542723]
[1718084491049,0.08921042,67771.0,67765.0,0.3542723]
[1718084491257,0.00787265,67766.0,67765.0,0.3532723]
[1718084491411,0.000946,67766.0,67765.0,0.3532723]
[1718084491631,0.000946,67766.0,67765.0,0.3542723]
[1718084492220,0.000946,67766.0,67765.0,0.3552723]
[1718084492607,0.000946,67766.0,67765.0,0.3542723]
[1718084492808,0.000946,67766.0,67765.0,0.3532723]
[1718084493014,0.000946,67766.0,67765.0,0.3542723]
[1718084493224,0.000946,67766.0,67765.0,0.3552723]
[1718084493851,0.000946,67766.0,67765.0,0.248568]
[1718084494055,0.000946,67766.0,67765.0,0.35669658]
[1718084494889,0.000946,67766.0,67765.0,0.35569658]
[1718084495284,0.000946,67766.0,67765.0,0.35669658]
[1718084495466,0.152146,67766.0,67765.0,0.35669658]
[1718084497736,0.000946,67766.0,67765.0,0.35669658]
[1718084498043,0.01084992,67766.0,67765.0,0.101]
[1718084498264,0.01084992,67766.0,67765.0,0.001]
[1718084498475,0.01084992,67766.0,67765.0,0.002]
[1718084498613,0.01084992,67766.0,67765.0,0.001]
[1718084498833,0.01084992,67766.0,67761.0,0.1]
[1718084498834,0.17240392,67762.0,67761.0,0.1]
[1718084499080,0.1625,67762.0,67761.0,0.10033286]
[1718084499302,0.2429,67762.0,67761.0,0.10033286]
[1718084499504,0.2429,67762.0,67761.0,0.00033286]
[1718084500356,0.2429,67762.0,67761.0,0.00133286]
[1718084500574,0.2429,67762.0,67761.0,0.10133286]
[1718084501291,0.1625,67765.0,67761.0,0.20849952]
[1718084501494,0.1625,67765.0,67761.0,0.10233286]
[1718084501495,0.25171042,67765.0,67761.0,0.10233286]
[1718084502170,0.1625,67765.0,67761.0,0.10133286]
[1718084502947,0.1625,67765.0,67761.0,0.10233286]
[1718084502948,0.25171042,67765.0,67761.0,0.10233286]
[1718084503104,0.000946,67766.0,67761.0,0.24990786]
[1718084503499,0.000946,67766.0,67762.0,0.25354179]
[1718084503895,0.000946,67766.0,67762.0,0.147574]
[1718084504313,0.000946,67766.0,67763.0,0.10589852]
[1718084505370,0.000946,67766.0,67763.0,0.25347152]
[1718084505601,0.000946,67766.0,67763.0,0.147573]
[1718084506229,0.000946,67766.0,67763.0,0.148573]
[1718084506998,0.000946,67766.0,67763.0,0.149573]
[1718084507758,0.000946,67766.0,67764.0,0.10621704]
[1718084507959,0.00990392,67765.0,67764.0,0.10621704]
[1718084508404,0.01084992,67766.0,67763.0,0.149573]
[1718084508662,0.01084992,67766.0,67763.0,0.148573]
[1718084509093,0.01084992,67766.0,67764.0,0.001]
[1718084509485,0.01084992,67766.0,67764.0,0.002]
[1718084509664,0.00990392,67764.0,67763.0,0.147573]
[1718084509844,0.24840392,67764.0,67763.0,0.25489541]
[1718084510034,0.24840392,67764.0,67763.0,0.25589541]
[1718084510240,0.24840392,67764.0,67763.0,0.25489541]
[1718084511882,0.2385,67764.0,67763.0,0.25489541]
[1718084512208,0.24840392,67764.0,67763.0,0.25389541]
[1718084512444,0.24840392,67764.0,67763.0,0.25489541]
[1718084513449,0.24840392,67764.0,67763.0,0.25589541]
[1718084513666,0.2385,67764.0,67763.0,0.25589541]
[1718084518686,0.2385,67764.0,67763.0,0.25675541]
[1718084520202,0.1604,67764.0,67763.0,0.25675541]
[1718084520632,0.000946,67765.0,67763.0,0.25675541]
[1718084520841,0.000946,67765.0,67764.0,0.10632241]
[1718084521250,0.000946,67765.0,67758.0,0.04414098]
[1718084521251,0.54890825,67759.0,67758.0,0.04414098]
[1718084521489,0.00990392,67755.0,67754.0,0.00033286]
[1718084521820,0.38232385,67755.0,67754.0,0.00033286]
[1718084522028,0.40532385,67755.0,67754.0,0.00033286]
[1718084522776,0.39541993,67755.0,67754.0,0.00033286]
[1718084522978,0.49453427,67755.0,67754.0,0.00033286]
[1718084523207,0.32721434,67755.0,67754.0,0.00133286]
[1718084524079,0.32721434,67755.0,67754.0,0.00033286]
[1718084525162,0.32721434,67755.0,67754.0,0.00133286]
[1718084525369,0.32821434,67755.0,67754.0,0.00133286]
[1718084525763,0.32721434,67755.0,67754.0,0.00033286]
[1718084525967,0.32721434,67755.0,67754.0,0.00133286]
[1718084526554,0.32721434,67755.0,67754.0,0.00033286]
[1718084526895,0.08921042,67753.0,67752.0,0.0004248]
[1718084528321,0.09911434,67753.0,67752.0,0.0004248]
[1718084528532,0.00990392,67754.0,67752.0,0.0004248]
[1718084528850,0.00990392,67754.0,67752.0,0.0014248]
[1718084529080,0.00990392,67753.0,67752.0,0.0014248]
[1718084529707,0.00990392,67753.0,67752.0,0.0024248]
[1718084530354,0.07411291,67756.0,67752.0,0.0014248]
[1718084530687,0.07411291,67759.0,67752.0,0.0014248]
[1718084531640,0.07411291,67760.0,67753.0,0.2414]
[1718084531846,0.07411291,67759.0,67753.0,0.2504185]
[1718084532073,0.07411291,67759.0,67753.0,0.2414]
[1718084532897,0.16332333,67762.0,67753.0,0.2504185]
[1718084533056,0.16332333,67762.0,67755.0,0.0090185]
[1718084533268,0.157346,67765.0,67757.0,0.0090185]
[1718084533484,0.000946,67765.0,67755.0,0.0090185]
[1718084533662,0.000946,67765.0,67757.0,0.0090185]
[1718084534108,0.000946,67765.0,67758.0,0.0090185]
[1718084534667,0.000946,67765.0,67757.0,0.1090185]
[1718084534875,0.000946,67765.0,67758.0,0.09347784]
[1718084535072,0.00990392,67764.0,67758.0,0.08445934]
[1718084535293,0.01084992,67765.0,67757.0,0.1]
[1718084535484,0.01084992,67765.0,67757.0,0.101]
[1718084536139,0.01084992,67765.0,67757.0,0.1]
[1718084536678,0.00990392,67764.0,67758.0,0.001]
[1718084536879,0.000946,67765.0,67758.0,0.001]
[1718084537077,0.000946,67765.0,67757.0,0.2566035]
[1718084537668,0.000946,67765.0,67761.0,0.0090185]
[1718084538271,0.000946,67765.0,67759.0,0.0090185]
[1718084539775,0.000946,67765.0,67759.0,0.001]
[1718084543412,0.01084992,67765.0,67759.0,0.001]
[1718084543839,0.000946,67765.0,67759.0,0.001]
[1718084544225,0.01084992,67765.0,67759.0,0.001]
[1718084544383,0.00990392,67764.0,67759.0,0.001]
[1718084544621,0.00990392,67762.0,67759.0,0.001]
[1718084544834,0.08740392,67762.0,67759.0,0.001]
[1718084545214,0.08740392,67762.0,67758.0,0.04416086]
[1718084545437,0.08740392,67762.0,67757.0,0.1]
[1718084545807,0.00990392,67761.0,67759.0,0.001]
[1718084546023,0.00990392,67760.0,67759.0,0.001]
[1718084546237,0.00344264,67761.0,67758.0,0.04417989]
[1718084546457,0.00344264,67760.0,67758.0,0.04417989]
[1718084546685,0.00344264,67760.0,67758.0,0.04517989]
[1718084546686,0.16554264,67760.0,67758.0,0.04517989]
[1718084546907,0.00344264,67759.0,67758.0,0.001]
[1718084547861,0.16554264,67760.0,67758.0,0.001]
[1718084548077,0.16554264,67760.0,67753.0,0.11730291]
[1718084548523,0.16554264,67760.0,67759.0,0.001]
[1718084548971,0.00344264,67758.0,67753.0,0.01730291]
[1718084549442,0.1621,67760.0,67758.0,0.001]
[1718084549443,0.16554264,67760.0,67758.0,0.001]
[1718084549667,0.00344264,67759.0,67758.0,0.001]
[1718084549873,0.1621,67760.0,67752.0,0.04460801]
[1718084549874,0.00344264,67758.0,67752.0,0.06276459]
[1718084550078,0.00344264,67759.0,67753.0,0.08597373]
[1718084550308,0.1621,67760.0,67753.0,0.18597373]
[1718084550535,0.16554264,67760.0,67753.0,0.1]
[1718084551383,0.16554264,67760.0,67759.0,0.001]
[1718084551806,0.1621,67760.0,67752.0,0.31036059]
[1718084552013,0.00344264,67758.0,67753.0,0.08614678]
[1718084552235,0.00344264,67758.0,67753.0,0.18714678]
[1718084552443,0.00344264,67758.0,67754.0,0.08614678]
[1718084552653,0.00344264,67758.0,67754.0,0.18614678]
[1718084552874,0.00344264,67758.0,67752.0,0.21036059]
[1718084552875,0.00344264,67753.0,67752.0,0.04494087]
[1718084553086,0.00344264,67753.0,67752.0,0.00075766]
[1718084553298,0.00344264,67753.0,67752.0,0.00175766]
[1718084553935,0.23004264,67753.0,67752.0,0.00175766]
[1718084554595,0.23004264,67753.0,67752.0,0.00075766]
[1718084555872,0.23004264,67753.0,67752.0,0.00175766]
[1718084557891,0.23004264,67753.0,67752.0,0.0014248]
[1718084562281,0.23004264,67753.0,67752.0,0.6014248]
[1718084566816,0.2266,67753.0,67752.0,0.6014248]
[1718084567986,0.23004264,67753.0,67752.0,0.6014248]
[1718084570424,0.2266,67753.0,67752.0,0.6014248]
[1718084571519,0.23004264,67753.0,67752.0,0.6014248]
[1718084571739,0.2266,67753.0,67752.0,0.6014248]
[1718084571951,0.23004264,67753.0,67752.0,0.6014248]
[1718084575188,0.2266,67753.0,67752.0,0.6014248]
[1718084575423,0.08921042,67755.0,67752.0,0.6014248]
[1718084575586,0.08921042,67755.0,67752.0,0.60175766]
[1718084576189,0.08921042,67755.0,67752.0,0.60075766]
[1718084578008,0.07411291,67759.0,67752.0,0.61077616]
[1718084578224,0.07411291,67759.0,67753.0,0.09311687]
[1718084578442,0.07411291,67759.0,67753.0,0.10418861]
[1718084578656,0.07411291,67759.0,67754.0,0.10418861]
[1718084578864,0.07411291,67759.0,67755.0,0.09311687]
[1718084580827,0.07411291,67759.0,67756.0,0.09381263]
[1718084581048,0.07411291,67761.0,67757.0,0.17033304]
[1718084581250,0.07411291,67759.0,67758.0,0.07652041]
[1718084581364,0.15941291,67762.0,67758.0,0.07652041]
[1718084581560,0.15941291,67762.0,67756.0,0.2432]
[1718084581764,0.07411291,67762.0,67757.0,0.09400078]
[1718084582203,0.00344264,67759.0,67757.0,0.09400078]
[1718084582779,0.0816,67758.0,67755.0,0.01107174]
[1718084582987,0.0816,67758.0,67756.0,0.09498183]
[1718084583137,0.1669,67758.0,67757.0,0.09398183]
[1718084583339,0.17034264,67758.0,67757.0,0.09398183]
[1718084583546,0.41105306,67758.0,67757.0,0.09398183]
[1718084583758,0.08921042,67755.0,67752.0,0.60075766]
[1718084584950,0.32231042,67758.0,67752.0,0.60161766]
[1718084585082,0.2331,67758.0,67752.0,0.61063616]
[1718084585325,0.08921042,67757.0,67752.0,0.60161766]
[1718084585753,0.08921042,67757.0,67752.0,0.60261766]
[1718084586129,0.08921042,67759.0,67753.0,0.076]
[1718084586336,0.08921042,67760.0,67754.0,0.244]
[1718084586770,0.07505891,67761.0,67756.0,0.0090185]
[1718084587061,0.07505891,67761.0,67756.0,0.1539]
[1718084588769,0.00344264,67760.0,67755.0,0.147588]
[1718084589003,0.00344264,67760.0,67756.0,0.001]
[1718084589654,0.00344264,67760.0,67755.0,0.147588]
[1718084590055,0.00344264,67760.0,67755.0,0.148588]
[1718084590484,0.00344264,67759.0,67755.0,0.148588]
[1718084590910,0.00344264,67760.0,67755.0,0.148588]
[1718084591074,0.00344264,67760.0,67756.0,0.3060829]
[1718084591239,0.00115453,67761.0,67756.0,0.3060829]
[1718084591461,0.00115453,67761.0,67760.0,0.82813411]
[1718084591669,0.00115453,67761.0,67760.0,1.38971303]
[1718084591871,0.000946,67765.0,67764.0,0.62646517]
[1718084592270,0.000946,67765.0,67764.0,1.31342831]
[1718084592909,0.000946,67765.0,67764.0,1.24122831]
[1718084593135,0.000946,67765.0,67764.0,1.02812831]
[1718084593348,0.000946,67765.0,67764.0,1.08823797]
[1718084593760,0.000946,67765.0,67764.0,0.977868]
[1718084593980,0.000946,67765.0,67764.0,1.08823797]
[1718084594210,0.000946,67765.0,67764.0,0.977868]
[1718084594423,0.000946,67765.0,67764.0,1.06613325]
[1718084594633,0.000946,67765.0,67764.0,1.27923325]
[1718084595301,0.000946,67765.0,67764.0,1.190968]
[1718084596269,0.000946,67765.0,67764.0,1.27917539]
[1718084596469,0.000946,67765.0,67764.0,1.190968]
[1718084596880,0.000946,67765.0,67764.0,1.25712591]
[1718084598634,0.000946,67765.0,67764.0,1.190968]
[1718084598844,0.000946,67765.0,67764.0,1.25712591]
[1718084599477,0.000946,67765.0,67764.0,1.190968]
[1718084600282,0.000946,67765.0,67764.0,1.20914579]
[1718084600482,0.000946,67765.0,67764.0,1.23503288]
[1718084601730,0.000946,67765.0,67764.0,1.73017388]
[1718084602160,0.000946,67765.0,67764.0,1.686109]
[1718084602495,0.000946,67765.0,67764.0,1.73016058]
[1718084602715,0.000946,67765.0,67764.0,1.53016058]
[1718084602928,0.000946,67765.0,67764.0,1.22407768]
[1718084603137,0.000946,67765.0,67764.0,1.02181857]
[1718084603784,0.000946,67765.0,67764.0,1.01102899]
[1718084604196,0.000946,67765.0,67764.0,0.97776699]
[1718084604366,0.000946,67765.0,67764.0,0.96697741]
[1718084604581,0.000946,67765.0,67764.0,0.81287741]
[1718084604787,0.000946,67765.0,67764.0,0.75166767]
[1718084605007,0.000946,67765.0,67764.0,1.47069825]
[1718084605215,0.000946,67765.0,67764.0,1.70829825]
[1718084605458,0.000946,67765.0,67764.0,1.75234983]
[1718084605846,0.000946,67765.0,67764.0,1.70829825]
[1718084606748,0.000946,67765.0,67764.0,2.00343925]
[1718084606966,0.000946,67765.0,67764.0,2.44363925]
[1718084607175,0.000946,67765.0,67764.0,2.7668775]
[1718084607621,0.000946,67765.0,67764.0,2.5537775]
[1718084607834,0.000946,67765.0,67764.0,2.5527775]
[1718084608328,0.000946,67765.0,67764.0,2.55374213]
[1718084608555,0.000946,67765.0,67764.0,2.44348261]
[1718084608773,0.000946,67765.0,67764.0,1.50093457]
[1718084608974,0.000946,67765.0,67764.0,1.50826288]
[1718084609883,0.000946,67765.0,67764.0,1.20231636]
[1718084610091,0.000946,67765.0,67764.0,1.50828979]
[1718084611855,0.000946,67765.0,67764.0,0.74264071]
[1718084612274,0.000946,67765.0,67764.0,0.59832078]
[1718084612487,0.000946,67765.0,67764.0,0.57243369]
[1718084612890,0.076146,67765.0,67764.0,0.57143369]
[1718084613026,0.24418864,67765.0,67764.0,0.30597343]
[1718084613243,0.24418864,67765.0,67760.0,0.147579]
[1718084613244,0.240746,67765.0,67760.0,0.147579]
[1718084613642,0.1617,67762.0,67760.0,0.14791186]
[1718084613846,0.0819,67761.0,67760.0,0.14791186]
[1718084614879,0.0819,67761.0,67760.0,0.24791186]
[1718084615777,0.0819,67761.0,67760.0,0.24891186]
[1718084617440,0.0819,67761.0,67760.0,0.24791186]
[1718084617838,0.0819,67761.0,67760.0,0.24891186]
[1718084618264,0.0819,67761.0,67760.0,0.55496908]
[1718084619048,0.0819,67761.0,67760.0,0.248579]
[1718084619876,0.0819,67761.0,67760.0,0.249439]
[1718084620087,0.0819,67761.0,67760.0,0.55549853]
[1718084621801,0.08534264,67761.0,67760.0,0.55549853]
[1718084622444,0.0819,67761.0,67760.0,0.55549853]
[1718084623300,0.0819,67761.0,67760.0,0.249439]
[1718084627265,0.116683,67762.0,67761.0,0.1565955]
[1718084627431,0.116683,67762.0,67761.0,0.247577]
[1718084628557,0.116683,67762.0,67761.0,0.248577]
[1718084631393,0.000946,67765.0,67764.0,0.14757]
[1718084631601,0.000946,67765.0,67764.0,0.2565885]
[1718084634448,0.000946,67765.0,67764.0,0.2575885]
[1718084635295,0.000946,67765.0,67764.0,0.24757]
[1718084636124,0.000946,67765.0,67764.0,0.24857]
[1718084638061,0.000946,67765.0,67764.0,0.26857]
[1718084639531,0.000946,67765.0,67764.0,0.2775885]
[1718084639790,0.000946,67765.0,67764.0,0.26857]
[1718084639995,0.000946,67765.0,67764.0,0.2775885]
[1718084641130,0.000946,67765.0,67764.0,0.35387]
[1718084641985,0.000946,67765.0,67764.0,0.43037627]
[1718084642650,0.000946,67765.0,67764.0,0.43939477]
[1718084642861,0.000946,67765.0,67764.0,0.43037627]
[1718084643576,0.000946,67765.0,67764.0,0.43939477]
[1718084644003,0.000946,67765.0,67764.0,0.43037627]
[1718084644543,0.000946,67765.0,67764.0,0.5837147]
[1718084644904,0.000946,67765.0,67764.0,0.83330428]
[1718084645107,0.000946,67765.0,67764.0,0.94958852]
[1718084645506,0.000946,67765.0,67764.0,0.95671244]
[1718084646662,0.000946,67765.0,67764.0,1.54009979]
[1718084646873,0.000946,67765.0,67764.0,1.45185344]
[1718084647077,0.000946,67765.0,67764.0,0.88455248]
[1718084647291,0.000946,67765.0,67764.0,0.95671244]
[1718084647711,0.000946,67765.0,67764.0,1.15671244]
[1718084648550,0.000946,67765.0,67764.0,1.08020617]
[1718084648821,0.000946,67765.0,67764.0,1.15670187]
[1718084649876,0.000946,67765.0,67764.0,1.47772996]
[1718084650086,0.000946,67765.0,67764.0,1.58803747]
[1718084650288,0.000946,67765.0,67764.0,1.47772996]
[1718084650698,0.000946,67765.0,67764.0,1.47672996]
[1718084651340,0.000946,67765.0,67764.0,1.39142996]
[1718084651543,0.000946,67765.0,67764.0,1.47672996]
[1718084651759,0.000946,67765.0,67764.0,1.47672734]
[1718084652182,0.000946,67776.0,67775.0,0.1565655]
[1718084652412,0.000946,67776.0,67775.0,0.64051137]
[1718084652819,0.000946,67776.0,67775.0,0.85510095]
[1718084653028,0.000946,67776.0,67775.0,0.69921861]
[1718084653476,0.000946,67776.0,67775.0,0.85510095]
[1718084653871,0.000946,67776.0,67775.0,0.65510095]
[1718084654528,0.000946,67776.0,67775.0,1.248242]
[1718084654737,0.000946,67776.0,67775.0,1.49627733]
[1718084654986,0.000946,67776.0,67775.0,1.51832488]
[1718084655192,0.000946,67776.0,67775.0,1.40803072]
[1718084655405,0.16858725,67791.0,67790.0,0.147514]
[1718084655612,0.16858725,67791.0,67790.0,0.22292866]
[1718084655824,0.119446,67791.0,67790.0,0.22292866]
[1718084656866,0.12288864,67791.0,67790.0,0.22292866]
[1718084657096,0.20588864,67791.0,67790.0,0.07681466]
[1718084657320,0.5988319,67791.0,67790.0,0.07681466]
[1718084657535,0.6088319,67791.0,67790.0,0.07681466]
[1718084657743,0.6088319,67791.0,67775.0,0.04410255]
[1718084657744,0.00344264,67776.0,67775.0,0.01106486]
[1718084657947,0.08921042,67780.0,67770.0,0.01106486]
[1718084657948,0.08644264,67774.0,67770.0,0.01106486]
[1718084658167,0.00344264,67771.0,67768.0,0.147561]
[1718084658380,0.08644264,67769.0,67768.0,0.147561]
[1718084658596,0.24954264,67769.0,67768.0,0.147561]
[1718084659699,0.2461,67769.0,67768.0,0.247561]
[1718084660546,0.24954264,67769.0,67768.0,0.247561]
[1718084660990,0.2461,67769.0,67768.0,0.247561]
[1718084662869,0.24954264,67769.0,67768.0,0.247561]
[1718084663662,0.2461,67769.0,67768.0,0.247561]
[1718084665637,0.14819616,67769.0,67768.0,0.247561]
[1718084671638,0.00344264,67771.0,67768.0,0.247561]
[1718084671990,0.00344264,67771.0,67769.0,0.147559]
[1718084673652,0.1596,67772.0,67769.0,0.147559]
[1718084675558,0.1596,67772.0,67770.0,0.147557]
[1718084677552,0.00344264,67774.0,67770.0,0.147557]
[1718084677795,0.24661042,67775.0,67770.0,0.147557]
[1718084678910,0.25005306,67775.0,67770.0,0.147557]
[1718084679368,0.24661042,67775.0,67770.0,0.147557]
[1718084680417,0.24661042,67775.0,67770.0,0.1565755]
[1718084680624,0.24661042,67775.0,67771.0,0.147554]
[1718084682717,0.00344264,67774.0,67771.0,0.147554]
[1718084682918,0.1574,67775.0,67771.0,0.147554]
[1718084684587,0.1574,67775.0,67768.0,0.18576]
[1718084684790,0.1574,67775.0,67773.0,0.14755]
[1718084685350,0.158346,67775.0,67773.0,0.14755]
[1718084686408,0.158346,67775.0,67774.0,0.30601182]
[1718084686668,0.000946,67775.0,67774.0,0.45356082]
[1718084694963,0.00438864,67775.0,67774.0,0.45356082]
[1718084695179,0.000946,67775.0,67774.0,0.30601182]